[Event "Late-Titled-Tuesday-Blitz-June-04-2024"]
[Site "Chess.com"]
[Date "2024.06.04"]
[Round "10"]
[White "FairChess_on_YouTube"]
[Black "eljanov"]
[Result "1-0"]
[WhiteElo "3087"]
[BlackElo "2944"]
[TimeControl "180+1"]
[EndTime "15:55:42 PDT"]
[Termination "FairChess_on_YouTube won by resignation"]

1. d4 {[%clk 0:03:00.9]} 1... Nf6 {[%clk 0:02:58.6]} 2. Nf3 {[%clk 0:03:00.9]}
2... d5 {[%clk 0:02:58.2]} 3. e3 {[%clk 0:02:59.9]} 3... c5 {[%clk 0:02:57.5]}
4. Be2 {[%clk 0:02:54.2]} 4... Nc6 {[%clk 0:02:56.9]} 5. O-O {[%clk 0:02:53.8]}
5... cxd4 {[%clk 0:02:54.4]} 6. exd4 {[%clk 0:02:51.7]} 6... Bg4 {[%clk
0:02:53]} 7. c3 {[%clk 0:02:48.9]} 7... e6 {[%clk 0:02:53.3]} 8. Bf4 {[%clk
0:02:48.9]} 8... Bd6 {[%clk 0:02:48.9]} 9. Bxd6 {[%clk 0:02:47.2]} 9... Qxd6
{[%clk 0:02:49.8]} 10. Nbd2 {[%clk 0:02:47.6]} 10... O-O {[%clk 0:02:49.5]} 11.
Re1 {[%clk 0:02:48]} 11... Qc7 {[%clk 0:02:45.8]} 12. Bd3 {[%clk 0:02:47.4]}
12... Ne7 {[%clk 0:02:29.3]} 13. a4 {[%clk 0:02:40.5]} 13... a5 {[%clk
0:02:26.5]} 14. Qb3 {[%clk 0:02:32.8]} 14... Bf5 {[%clk 0:02:24.6]} 15. Bf1
{[%clk 0:02:32.7]} 15... Nc8 {[%clk 0:02:18.2]} 16. Ne5 {[%clk 0:02:27.5]} 16...
Nd6 {[%clk 0:02:18.8]} 17. Nb1 {[%clk 0:02:25.5]} 17... Nd7 {[%clk 0:02:13.2]}
18. Na3 {[%clk 0:02:19.6]} 18... Nxe5 {[%clk 0:02:06.1]} 19. Rxe5 {[%clk
0:02:20.5]} 19... Ne4 {[%clk 0:01:57.2]} 20. Nb5 {[%clk 0:02:12.1]} 20... Qb6
{[%clk 0:01:41.4]} 21. f3 {[%clk 0:02:07.4]} 21... Nd2 {[%clk 0:01:39.9]} 22.
Qd1 {[%clk 0:02:06]} 22... Nxf1 {[%clk 0:01:39.1]} 23. Qxf1 {[%clk 0:02:05.7]}
23... f6 {[%clk 0:01:36.6]} 24. Ree1 {[%clk 0:02:03.1]} 24... e5 {[%clk
0:01:36.1]} 25. Qf2 {[%clk 0:01:56.9]} 25... e4 {[%clk 0:01:33.8]} 26. Qg3
{[%clk 0:01:57.1]} 26... Bg6 {[%clk 0:01:22.3]} 27. Qc7 {[%clk 0:01:53]} 27...
Qc6 {[%clk 0:01:18.3]} 28. Qf4 {[%clk 0:01:34.6]} 28... Rad8 {[%clk 0:01:18.3]}
29. Re3 {[%clk 0:01:21.6]} 29... Rfe8 {[%clk 0:01:17.2]} 30. h4 {[%clk 0:01:13]}
30... h5 {[%clk 0:01:13.6]} 31. Rae1 {[%clk 0:01:09]} 31... Kh7 {[%clk 0:01:13]}
32. fxe4 {[%clk 0:01:02.7]} 32... Rxe4 {[%clk 0:01:10]} 33. Rxe4 {[%clk
0:01:02.9]} 33... Bxe4 {[%clk 0:01:09.7]} 34. Re3 {[%clk 0:01:00.1]} 34... Rd7
{[%clk 0:00:57.5]} 35. b3 {[%clk 0:00:56.2]} 35... b6 {[%clk 0:00:49.2]} 36. Rg3
{[%clk 0:00:38.6]} 36... Re7 {[%clk 0:00:45.7]} 37. Nd6 {[%clk 0:00:31.5]} 37...
Qd7 {[%clk 0:00:40.3]} 38. c4 {[%clk 0:00:27.8]} 38... Bg6 {[%clk 0:00:31]} 39.
c5 {[%clk 0:00:27.6]} 39... bxc5 {[%clk 0:00:27.4]} 40. dxc5 {[%clk 0:00:28.5]}
40... Qe6 {[%clk 0:00:22.2]} 41. Kh2 {[%clk 0:00:17.6]} 41... Qe5 {[%clk
0:00:22.2]} 42. Qxe5 {[%clk 0:00:14.8]} 42... fxe5 {[%clk 0:00:22.2]} 43. Nb5
{[%clk 0:00:15.5]} 43... Be8 {[%clk 0:00:17.5]} 44. Re3 {[%clk 0:00:12.9]} 44...
Kg6 {[%clk 0:00:15]} 45. Kg3 {[%clk 0:00:12.8]} 45... Kf6 {[%clk 0:00:15.3]} 46.
Kf2 {[%clk 0:00:11.8]} 46... d4 {[%clk 0:00:14.9]} 47. Rg3 {[%clk 0:00:11.3]}
47... Bc6 {[%clk 0:00:13.8]} 48. Ke2 {[%clk 0:00:09.2]} 48... e4 {[%clk
0:00:14.2]} 49. Nxd4 {[%clk 0:00:08.8]} 49... Bd5 {[%clk 0:00:13.5]} 50. Rg5
{[%clk 0:00:09]} 50... Bf7 {[%clk 0:00:11.6]} 51. Ke3 {[%clk 0:00:08.5]} 51...
Re5 {[%clk 0:00:08.2]} 52. c6 {[%clk 0:00:07.9]} 52... Rxg5 {[%clk 0:00:05.3]}
53. hxg5+ {[%clk 0:00:08.8]} 53... Ke7 {[%clk 0:00:05.4]} 54. Nf5+ {[%clk
0:00:08.4]} 54... Ke6 {[%clk 0:00:04.3]} 55. Nxg7+ {[%clk 0:00:08.7]} 55... Kd6
{[%clk 0:00:04.8]} 56. Nf5+ {[%clk 0:00:08.7]} 56... Kxc6 {[%clk 0:00:05.2]} 57.
g6 {[%clk 0:00:09.2]} 57... Bxb3 {[%clk 0:00:04.5]} 58. Nd4+ {[%clk 0:00:09.2]}
1-0

[Event "Late-Titled-Tuesday-Blitz-June-04-2024"]
[Site "Chess.com"]
[Date "2024.06.04"]
[Round "10"]
[White "TheoSlade"]
[Black "fly_21"]
[Result "1-0"]
[WhiteElo "2494"]
[BlackElo "2594"]
[TimeControl "180+1"]
[EndTime "15:55:43 PDT"]
[Termination "TheoSlade won by resignation"]

1. d4 {[%clk 0:03:00.9]} 1... Nf6 {[%clk 0:02:59.9]} 2. c4 {[%clk 0:03:00.9]}
2... g6 {[%clk 0:02:55.7]} 3. Nc3 {[%clk 0:03:00.4]} 3... d5 {[%clk 0:02:55.7]}
4. cxd5 {[%clk 0:03:01.3]} 4... Nxd5 {[%clk 0:02:56.1]} 5. e4 {[%clk 0:03:01.8]}
5... Nxc3 {[%clk 0:02:56]} 6. bxc3 {[%clk 0:03:02.7]} 6... Bg7 {[%clk
0:02:56.4]} 7. Be3 {[%clk 0:03:02.7]} 7... c5 {[%clk 0:02:56.5]} 8. Rc1 {[%clk
0:03:03.1]} 8... Qa5 {[%clk 0:02:56]} 9. Qd2 {[%clk 0:03:02.6]} 9... cxd4 {[%clk
0:02:56.1]} 10. cxd4 {[%clk 0:03:03.5]} 10... Qxd2+ {[%clk 0:02:56.4]} 11. Bxd2
{[%clk 0:03:03.8]} 11... O-O {[%clk 0:02:56.3]} 12. Nf3 {[%clk 0:03:04.3]} 12...
Bg4 {[%clk 0:02:49.8]} 13. Be3 {[%clk 0:03:03]} 13... Nd7 {[%clk 0:02:35.5]} 14.
Rc7 {[%clk 0:02:53]} 14... Rfc8 {[%clk 0:02:29.6]} 15. Rxb7 {[%clk 0:02:49.8]}
15... Rab8 {[%clk 0:02:29.3]} 16. Rxb8 {[%clk 0:02:48]} 16... Rxb8 {[%clk
0:02:30.2]} 17. Bd3 {[%clk 0:02:46.3]} 17... Rb4 {[%clk 0:02:20]} 18. O-O {[%clk
0:01:53]} 18... Bxf3 {[%clk 0:02:17.5]} 19. gxf3 {[%clk 0:01:53.9]} 19... Bxd4
{[%clk 0:02:17.7]} 20. Rb1 {[%clk 0:01:46.5]} 20... Rxb1+ {[%clk 0:02:00]} 21.
Bxb1 {[%clk 0:01:47]} 21... Bxe3 {[%clk 0:01:59.6]} 22. fxe3 {[%clk 0:01:47.5]}
22... e5 {[%clk 0:01:57.9]} 23. Kf2 {[%clk 0:01:46.1]} 23... Kf8 {[%clk
0:01:58.1]} 24. Ke2 {[%clk 0:01:45]} 24... Ke7 {[%clk 0:01:58.6]} 25. Kd3 {[%clk
0:01:45.5]} 25... Kd6 {[%clk 0:01:57.2]} 26. Kc4 {[%clk 0:01:45.9]} 26... Kc6
{[%clk 0:01:56.4]} 27. Kb4 {[%clk 0:01:39.6]} 27... Nc5 {[%clk 0:01:42.3]} 28.
Bc2 {[%clk 0:01:37.7]} 28... Ne6 {[%clk 0:01:37.9]} 29. Ka5 {[%clk 0:01:32.5]}
29... Kb7 {[%clk 0:01:24.9]} 30. Kb5 {[%clk 0:01:30]} 30... a6+ {[%clk
0:01:20.5]} 31. Ka5 {[%clk 0:01:27.5]} 31... Ng5 {[%clk 0:01:12.8]} 32. f4
{[%clk 0:01:23]} 32... Nf3 {[%clk 0:01:10.8]} 33. h3 {[%clk 0:01:07.6]} 33...
exf4 {[%clk 0:00:52.3]} 34. exf4 {[%clk 0:01:08.5]} 34... Nd4 {[%clk 0:00:52.6]}
35. Bb3 {[%clk 0:00:59.8]} 35... Nxb3+ {[%clk 0:00:28.8]} 36. axb3 {[%clk
0:00:59.8]} 36... Ka7 {[%clk 0:00:29.5]} 37. b4 {[%clk 0:00:28]} 37... Kb7
{[%clk 0:00:29.1]} 38. e5 {[%clk 0:00:27.9]} 38... h6 {[%clk 0:00:20.2]} 39. h4
{[%clk 0:00:20.2]} 39... h5 {[%clk 0:00:20.2]} 40. b5 {[%clk 0:00:19]} 40...
axb5 {[%clk 0:00:21.1]} 41. Kxb5 {[%clk 0:00:19.5]} 41... Kc7 {[%clk 0:00:21.8]}
42. Kc5 {[%clk 0:00:20]} 42... Kd7 {[%clk 0:00:22.4]} 43. Kd5 {[%clk 0:00:20.6]}
43... Ke7 {[%clk 0:00:23]} 44. Kd4 {[%clk 0:00:20.5]} 44... Ke6 {[%clk
0:00:23.4]} 45. Ke4 {[%clk 0:00:21.1]} 45... Kd7 {[%clk 0:00:13.5]} 46. f5
{[%clk 0:00:12.7]} 46... Ke7 {[%clk 0:00:13.3]} 47. Kf4 {[%clk 0:00:12.6]} 47...
Kd7 {[%clk 0:00:11.3]} 48. Kg5 {[%clk 0:00:12.7]} 48... gxf5 {[%clk 0:00:11.8]}
49. Kxf5 {[%clk 0:00:05.3]} 49... Ke7 {[%clk 0:00:11.8]} 50. Kg5 {[%clk
0:00:05.5]} 50... Ke6 {[%clk 0:00:12.5]} 51. Kxh5 {[%clk 0:00:06]} 51... Kxe5
{[%clk 0:00:13.1]} 52. Kg5 {[%clk 0:00:05.6]} 52... f6+ {[%clk 0:00:13.1]} 53.
Kg6 {[%clk 0:00:04.7]} 53... f5 {[%clk 0:00:13.6]} 54. h5 {[%clk 0:00:05.6]}
54... f4 {[%clk 0:00:14.3]} 55. h6 {[%clk 0:00:06.5]} 55... f3 {[%clk
0:00:14.9]} 56. h7 {[%clk 0:00:07.4]} 56... Kf4 {[%clk 0:00:15.5]} 57. h8=Q
{[%clk 0:00:08.3]} 57... f2 {[%clk 0:00:15.6]} 58. Qh1 {[%clk 0:00:08.4]} 58...
Ke3 {[%clk 0:00:16.3]} 59. Qf1 {[%clk 0:00:08.8]} 59... Kf3 {[%clk 0:00:17.2]}
60. Kf5 {[%clk 0:00:09.1]} 60... Kg3 {[%clk 0:00:18.1]} 61. Ke4 {[%clk
0:00:09.3]} 61... Kg4 {[%clk 0:00:18.6]} 62. Qxf2 {[%clk 0:00:09.5]} 62... Kg5
{[%clk 0:00:19.5]} 63. Qf4+ {[%clk 0:00:10]} 63... Kg6 {[%clk 0:00:19.1]} 64.
Qf5+ {[%clk 0:00:10.9]} 64... Kg7 {[%clk 0:00:18.8]} 65. Kf4 {[%clk 0:00:11.8]}
65... Kh6 {[%clk 0:00:18.9]} 66. Qg5+ {[%clk 0:00:10.2]} 66... Kh7 {[%clk
0:00:19.8]} 67. Kf5 {[%clk 0:00:10.6]} 67... Kh8 {[%clk 0:00:20.5]} 68. Kf6
{[%clk 0:00:11.5]} 1-0

[Event "Late-Titled-Tuesday-Blitz-June-04-2024"]
[Site "Chess.com"]
[Date "2024.06.04"]
[Round "10"]
[White "duone"]
[Black "N_Mullodzhanov"]
[Result "1-0"]
[WhiteElo "2412"]
[BlackElo "2510"]
[TimeControl "180+1"]
[EndTime "15:55:45 PDT"]
[Termination "duone won by checkmate"]

1. e4 {[%clk 0:03:00.9]} 1... c6 {[%clk 0:02:59.5]} 2. Nf3 {[%clk 0:02:52.8]}
2... d5 {[%clk 0:02:59.8]} 3. Nc3 {[%clk 0:02:53.4]} 3... Bg4 {[%clk 0:02:59.5]}
4. h3 {[%clk 0:02:52.5]} 4... Bxf3 {[%clk 0:02:59.8]} 5. Qxf3 {[%clk 0:02:51.5]}
5... e6 {[%clk 0:03:00.3]} 6. g3 {[%clk 0:02:49]} 6... Nf6 {[%clk 0:02:59.8]} 7.
Bg2 {[%clk 0:02:46.6]} 7... Bc5 {[%clk 0:02:59.9]} 8. d3 {[%clk 0:02:46.8]} 8...
O-O {[%clk 0:02:59.5]} 9. O-O {[%clk 0:02:47.1]} 9... Nbd7 {[%clk 0:02:59.6]}
10. Bg5 {[%clk 0:02:44.4]} 10... Qc7 {[%clk 0:02:57.5]} 11. Rad1 {[%clk
0:02:43]} 11... h6 {[%clk 0:02:57.1]} 12. Bxf6 {[%clk 0:02:18.3]} 12... Nxf6
{[%clk 0:02:58]} 13. d4 {[%clk 0:02:18.6]} 13... dxe4 {[%clk 0:02:37.7]} 14.
Nxe4 {[%clk 0:02:17.7]} 14... Nxe4 {[%clk 0:02:37.7]} 15. Qxe4 {[%clk
0:02:18.3]} 15... Be7 {[%clk 0:02:35.8]} 16. c4 {[%clk 0:02:18.1]} 16... Bf6
{[%clk 0:02:33.7]} 17. Rd3 {[%clk 0:02:17.5]} 17... Rad8 {[%clk 0:02:32.1]} 18.
Rfd1 {[%clk 0:02:17.9]} 18... g6 {[%clk 0:02:30.4]} 19. h4 {[%clk 0:02:16.3]}
19... h5 {[%clk 0:02:29.6]} 20. Bh3 {[%clk 0:02:11.4]} 20... c5 {[%clk
0:02:20.8]} 21. d5 {[%clk 0:02:03.7]} 21... exd5 {[%clk 0:02:20.5]} 22. cxd5
{[%clk 0:02:04.2]} 22... Bxb2 {[%clk 0:01:46.9]} 23. d6 {[%clk 0:02:01.9]} 23...
Qa5 {[%clk 0:01:46.4]} 24. Qxb7 {[%clk 0:01:59]} 24... c4 {[%clk 0:01:30]} 25.
Qxb2 {[%clk 0:01:48.6]} 25... cxd3 {[%clk 0:01:28.2]} 26. Rxd3 {[%clk
0:01:49.5]} 26... Qe1+ {[%clk 0:01:18]} 27. Kh2 {[%clk 0:01:49.7]} 27... Rb8
{[%clk 0:01:05.2]} 28. Qf6 {[%clk 0:01:34.2]} 28... Qe2 {[%clk 0:00:56.3]} 29.
Re3 {[%clk 0:01:28.1]} 29... Qxa2 {[%clk 0:00:49.9]} 30. Be6 {[%clk 0:01:20.5]}
30... Qc2 {[%clk 0:00:40.1]} 31. Bd5 {[%clk 0:01:07.8]} 31... Qf5 {[%clk
0:00:26]} 32. Qxf5 {[%clk 0:01:01.5]} 32... gxf5 {[%clk 0:00:26.9]} 33. Re7
{[%clk 0:00:51.8]} 33... Rb6 {[%clk 0:00:20.6]} 34. d7 {[%clk 0:00:50.1]} 34...
Rd6 {[%clk 0:00:20.3]} 35. Bb3 {[%clk 0:00:48.5]} 35... a5 {[%clk 0:00:18.9]}
36. Ba4 {[%clk 0:00:48.8]} 36... Rd4 {[%clk 0:00:18.4]} 37. Re8 {[%clk
0:00:47.8]} 37... Kg7 {[%clk 0:00:11.1]} 38. Kg2 {[%clk 0:00:47.9]} 38... f4
{[%clk 0:00:06.5]} 39. Kf3 {[%clk 0:00:46.1]} 39... fxg3 {[%clk 0:00:06.4]} 40.
fxg3 {[%clk 0:00:46.3]} 40... Rh8 {[%clk 0:00:05.9]} 41. Ke3 {[%clk 0:00:41.9]}
41... Rd6 {[%clk 0:00:06.2]} 42. Kf4 {[%clk 0:00:34.3]} 42... Rd4+ {[%clk
0:00:05.7]} 43. Ke3 {[%clk 0:00:31.5]} 43... Rd6 {[%clk 0:00:05.8]} 44. Kf4
{[%clk 0:00:25.3]} 44... Rf8 {[%clk 0:00:06]} 45. Kg5 {[%clk 0:00:21.6]} 45...
Rd5+ {[%clk 0:00:05.8]} 46. Kf4 {[%clk 0:00:21.8]} 46... f6 {[%clk 0:00:05]} 47.
Bc6 {[%clk 0:00:21.5]} 47... Rd6 {[%clk 0:00:05]} 48. Ba4 {[%clk 0:00:21.4]}
48... Kf7 {[%clk 0:00:04.6]} 49. Kf5 {[%clk 0:00:20.7]} 49... Rd5+ {[%clk
0:00:04.5]} 50. Ke4 {[%clk 0:00:21.2]} 50... Rxd7 {[%clk 0:00:02.6]} 51. Rxf8+
{[%clk 0:00:20.5]} 51... Kxf8 {[%clk 0:00:02.7]} 52. Bxd7 {[%clk 0:00:21.2]}
52... Ke7 {[%clk 0:00:03.6]} 53. Ba4 {[%clk 0:00:21.4]} 53... Ke6 {[%clk
0:00:04.5]} 54. Bb3+ {[%clk 0:00:20.9]} 54... Ke7 {[%clk 0:00:04.2]} 55. Kf5
{[%clk 0:00:21.2]} 55... a4 {[%clk 0:00:01.8]} 56. Bxa4 {[%clk 0:00:20.9]} 56...
Kf7 {[%clk 0:00:02.7]} 57. Bb3+ {[%clk 0:00:20.8]} 57... Kg7 {[%clk 0:00:03.6]}
58. Be6 {[%clk 0:00:20.6]} 58... Kh6 {[%clk 0:00:02.4]} 59. Kxf6 {[%clk
0:00:21]} 59... Kh7 {[%clk 0:00:03]} 60. Kg5 {[%clk 0:00:21.4]} 60... Kg7 {[%clk
0:00:03.4]} 61. Kxh5 {[%clk 0:00:21.9]} 61... Kf6 {[%clk 0:00:04.3]} 62. Ba2
{[%clk 0:00:20]} 62... Kg7 {[%clk 0:00:05.2]} 63. Kg5 {[%clk 0:00:19.8]} 63...
Kh7 {[%clk 0:00:05.6]} 64. h5 {[%clk 0:00:20.5]} 64... Kg7 {[%clk 0:00:06.5]}
65. h6+ {[%clk 0:00:20.9]} 65... Kh8 {[%clk 0:00:07.4]} 66. Bb1 {[%clk
0:00:19.9]} 66... Kg8 {[%clk 0:00:06.8]} 67. Kf6 {[%clk 0:00:19.4]} 67... Kh8
{[%clk 0:00:06.4]} 68. g4 {[%clk 0:00:19.9]} 68... Kg8 {[%clk 0:00:07.3]} 69. g5
{[%clk 0:00:20.5]} 69... Kh8 {[%clk 0:00:07.9]} 70. g6 {[%clk 0:00:21.1]} 70...
Kg8 {[%clk 0:00:08.8]} 71. h7+ {[%clk 0:00:20.9]} 71... Kf8 {[%clk 0:00:09.4]}
72. h8=R# {[%clk 0:00:20]} 1-0

[Event "Late-Titled-Tuesday-Blitz-June-04-2024"]
[Site "Chess.com"]
[Date "2024.06.04"]
[Round "10"]
[White "rikchessmx"]
[Black "betta2004"]
[Result "0-1"]
[WhiteElo "2344"]
[BlackElo "2534"]
[TimeControl "180+1"]
[EndTime "15:55:48 PDT"]
[Termination "betta2004 won by resignation"]

1. e4 {[%clk 0:02:54.2]} 1... c6 {[%clk 0:02:39.4]} 2. d4 {[%clk 0:02:39.5]}
2... d5 {[%clk 0:02:40.3]} 3. Nc3 {[%clk 0:02:37.6]} 3... dxe4 {[%clk
0:02:39.2]} 4. Nxe4 {[%clk 0:02:35.4]} 4... Bf5 {[%clk 0:02:40.1]} 5. Ng3 {[%clk
0:02:34]} 5... Bg6 {[%clk 0:02:40.7]} 6. h4 {[%clk 0:02:34.6]} 6... h6 {[%clk
0:02:40.3]} 7. h5 {[%clk 0:02:34.9]} 7... Bh7 {[%clk 0:02:39.7]} 8. Nf3 {[%clk
0:02:35.6]} 8... e6 {[%clk 0:02:38.4]} 9. Bd3 {[%clk 0:02:36.1]} 9... Bxd3
{[%clk 0:02:34.9]} 10. Qxd3 {[%clk 0:02:35.6]} 10... Nd7 {[%clk 0:02:35.5]} 11.
Bd2 {[%clk 0:02:33.6]} 11... Ngf6 {[%clk 0:02:31.8]} 12. O-O-O {[%clk
0:02:32.5]} 12... Qc7 {[%clk 0:02:28.7]} 13. Ne4 {[%clk 0:02:29.3]} 13... O-O-O
{[%clk 0:02:28.1]} 14. g3 {[%clk 0:02:28.3]} 14... Be7 {[%clk 0:02:26.4]} 15. c4
{[%clk 0:02:27.3]} 15... Nxe4 {[%clk 0:02:25.7]} 16. Qxe4 {[%clk 0:02:27.1]}
16... Nf6 {[%clk 0:02:26.6]} 17. Qe2 {[%clk 0:02:27.1]} 17... Qb6 {[%clk
0:02:02.3]} 18. Bc3 {[%clk 0:02:25.3]} 18... c5 {[%clk 0:01:59.7]} 19. d5 {[%clk
0:02:25.3]} 19... Rhe8 {[%clk 0:01:56.2]} 20. dxe6 {[%clk 0:02:24.7]} 20... Qxe6
{[%clk 0:01:57.1]} 21. Qxe6+ {[%clk 0:02:24.4]} 21... fxe6 {[%clk 0:01:56.5]}
22. Ne5 {[%clk 0:02:21.6]} 22... Ne4 {[%clk 0:01:50.6]} 23. Rxd8+ {[%clk
0:02:15.7]} 23... Rxd8 {[%clk 0:01:38.2]} 24. Be1 {[%clk 0:02:15.4]} 24... Bg5+
{[%clk 0:01:35.3]} 25. f4 {[%clk 0:02:14]} 25... Bf6 {[%clk 0:01:35.3]} 26. Ng6
{[%clk 0:02:05.1]} 26... Rd3 {[%clk 0:01:23.8]} 27. g4 {[%clk 0:02:00.4]} 27...
Rf3 {[%clk 0:01:15.9]} 28. Bh4 {[%clk 0:01:49.6]} 28... Nf2 {[%clk 0:01:06.9]}
29. Bxf2 {[%clk 0:01:44.9]} 29... Rxf2 {[%clk 0:01:07.8]} 30. Re1 {[%clk
0:01:28.8]} 30... Bxb2+ {[%clk 0:01:02.9]} 31. Kb1 {[%clk 0:01:28.3]} 31... Bd4
{[%clk 0:01:00.8]} 32. Rxe6 {[%clk 0:01:23.2]} 32... Rb2+ {[%clk 0:01:01.1]} 33.
Kc1 {[%clk 0:01:22.6]} 33... Rxa2 {[%clk 0:01:01.5]} 34. g5 {[%clk 0:01:16.1]}
34... hxg5 {[%clk 0:01:00]} 35. fxg5 {[%clk 0:01:16.1]} 35... Rh2 {[%clk
0:01:00.3]} 36. h6 {[%clk 0:01:11.2]} 36... gxh6 {[%clk 0:00:55.6]} 37. gxh6
{[%clk 0:01:09.1]} 37... a5 {[%clk 0:00:56.1]} 38. Nf4 {[%clk 0:01:01.4]} 38...
a4 {[%clk 0:00:50.9]} 39. Ne2 {[%clk 0:00:56.7]} 39... Rxh6 {[%clk 0:00:17.6]}
40. Rxh6 {[%clk 0:00:47.6]} 40... Be3+ {[%clk 0:00:17.7]} 41. Kc2 {[%clk
0:00:43.5]} 41... Bxh6 {[%clk 0:00:17.6]} 42. Nc3 {[%clk 0:00:43.7]} 42... a3
{[%clk 0:00:17.7]} 43. Kb3 {[%clk 0:00:43.9]} 43... Bc1 {[%clk 0:00:17.3]} 44.
Ne4 {[%clk 0:00:43.3]} 44... b6 {[%clk 0:00:16.4]} 45. Nc3 {[%clk 0:00:42.1]}
45... Kd7 {[%clk 0:00:15.9]} 46. Nd5 {[%clk 0:00:39.4]} 46... Kc6 {[%clk
0:00:15.1]} 47. Ne7+ {[%clk 0:00:39.5]} 47... Kd6 {[%clk 0:00:15.2]} 48. Nd5
{[%clk 0:00:39.6]} 48... b5 {[%clk 0:00:15.6]} 49. Nb6 {[%clk 0:00:35.9]} 49...
Kc6 {[%clk 0:00:12.2]} 50. Nc8 {[%clk 0:00:26]} 50... bxc4+ {[%clk 0:00:12.3]}
51. Ka2 {[%clk 0:00:25.2]} 51... Bb2 {[%clk 0:00:08.9]} 52. Ne7+ {[%clk
0:00:22.4]} 52... Kb5 {[%clk 0:00:08.7]} 53. Nd5 {[%clk 0:00:22.2]} 53... c3
{[%clk 0:00:09]} 54. Kb3 {[%clk 0:00:20]} 54... c4+ {[%clk 0:00:09.4]} 55. Ka2
{[%clk 0:00:17.9]} 55... c2 {[%clk 0:00:08.7]} 56. Ne3 {[%clk 0:00:11.3]} 56...
c1=Q {[%clk 0:00:03.3]} 57. Nxc4 {[%clk 0:00:10.7]} 57... Qxc4+ {[%clk
0:00:03.2]} 58. Kb1 {[%clk 0:00:10.7]} 58... Qd3+ {[%clk 0:00:02.1]} 59. Ka2
{[%clk 0:00:10.8]} 59... Qd5+ {[%clk 0:00:02.7]} 60. Kb1 {[%clk 0:00:10.5]}
60... Bh8 {[%clk 0:00:03.3]} 61. Kc2 {[%clk 0:00:10]} 61... Qc4+ {[%clk
0:00:03.6]} 62. Kb1 {[%clk 0:00:10.1]} 62... Qb3+ {[%clk 0:00:03.2]} 0-1

[Event "Late-Titled-Tuesday-Blitz-June-04-2024"]
[Site "Chess.com"]
[Date "2024.06.04"]
[Round "10"]
[White "Statham_01"]
[Black "jaskol95"]
[Result "0-1"]
[WhiteElo "2695"]
[BlackElo "2578"]
[TimeControl "180+1"]
[EndTime "15:55:58 PDT"]
[Termination "jaskol95 won by resignation"]

1. e4 {[%clk 0:03:00.9]} 1... d5 {[%clk 0:03:00.3]} 2. exd5 {[%clk 0:03:00.9]}
2... Nf6 {[%clk 0:03:00.8]} 3. Nf3 {[%clk 0:03:01.6]} 3... Bg4 {[%clk
0:03:01.3]} 4. c4 {[%clk 0:03:01.1]} 4... c6 {[%clk 0:02:55.8]} 5. Nc3 {[%clk
0:03:01.3]} 5... cxd5 {[%clk 0:02:56]} 6. cxd5 {[%clk 0:03:02.2]} 6... Nxd5
{[%clk 0:02:54]} 7. Bc4 {[%clk 0:02:53.2]} 7... Nxc3 {[%clk 0:02:24.6]} 8. bxc3
{[%clk 0:02:05.7]} 8... e6 {[%clk 0:02:24.5]} 9. Bb5+ {[%clk 0:01:58.9]} 9...
Nd7 {[%clk 0:02:11.4]} 10. d4 {[%clk 0:01:44.7]} 10... Bd6 {[%clk 0:02:08.5]}
11. O-O {[%clk 0:01:38.7]} 11... O-O {[%clk 0:02:05.2]} 12. Be2 {[%clk 0:01:31]}
12... Qc7 {[%clk 0:01:57.6]} 13. Qd3 {[%clk 0:01:12.3]} 13... Bxf3 {[%clk
0:01:53.7]} 14. Bxf3 {[%clk 0:01:13.2]} 14... Bxh2+ {[%clk 0:01:54.1]} 15. Kh1
{[%clk 0:01:13.8]} 15... Bd6 {[%clk 0:01:50.3]} 16. c4 {[%clk 0:01:13.1]} 16...
e5 {[%clk 0:01:23.9]} 17. c5 {[%clk 0:01:01.9]} 17... Be7 {[%clk 0:01:22.3]} 18.
Rb1 {[%clk 0:00:55.8]} 18... Rab8 {[%clk 0:01:14.8]} 19. Qf5 {[%clk 0:00:41.6]}
19... g6 {[%clk 0:00:55.1]} 20. Qh3 {[%clk 0:00:35.9]} 20... exd4 {[%clk
0:00:50.8]} 21. Rxb7 {[%clk 0:00:28.1]} 21... Rxb7 {[%clk 0:00:44.6]} 22. c6
{[%clk 0:00:28.3]} 22... Rb1 {[%clk 0:00:34.4]} 23. Be4 {[%clk 0:00:20.9]} 23...
Rxc1 {[%clk 0:00:20.5]} 24. Rxc1 {[%clk 0:00:20.3]} 24... Nf6 {[%clk 0:00:18.8]}
25. Bf3 {[%clk 0:00:20.6]} 25... Rd8 {[%clk 0:00:17.7]} 26. Rd1 {[%clk
0:00:18.7]} 26... Qe5 {[%clk 0:00:16]} 27. Qh4 {[%clk 0:00:15.1]} 27... Bd6
{[%clk 0:00:14.8]} 28. g3 {[%clk 0:00:13]} 28... Bc7 {[%clk 0:00:14.8]} 29. Kg2
{[%clk 0:00:12.5]} 29... d3 {[%clk 0:00:13.9]} 30. Qc4 {[%clk 0:00:12.4]} 30...
d2 {[%clk 0:00:13.8]} 31. Qb4 {[%clk 0:00:11.1]} 31... Qd6 {[%clk 0:00:13.2]}
32. Qc4 {[%clk 0:00:10.4]} 32... Qd4 {[%clk 0:00:11.7]} 33. Qb3 {[%clk
0:00:09.5]} 33... Bb6 {[%clk 0:00:11.2]} 34. Rf1 {[%clk 0:00:09.3]} 34... h5
{[%clk 0:00:07.4]} 35. a4 {[%clk 0:00:08.9]} 35... Ng4 {[%clk 0:00:07.6]} 36. a5
{[%clk 0:00:08.8]} 36... Bxa5 {[%clk 0:00:03.6]} 37. Qb7 {[%clk 0:00:09.4]}
37... Bb6 {[%clk 0:00:03.3]} 38. c7 {[%clk 0:00:09.3]} 38... Bxc7 {[%clk
0:00:02]} 39. Qxc7 {[%clk 0:00:10.2]} 39... d1=Q {[%clk 0:00:01.6]} 40. Bxd1
{[%clk 0:00:10.2]} 40... Qd5+ {[%clk 0:00:01.8]} 41. Bf3 {[%clk 0:00:10]} 41...
Qd7 {[%clk 0:00:01.5]} 42. Qf4 {[%clk 0:00:09.5]} 42... Qd6 {[%clk 0:00:01]} 43.
Qg5 {[%clk 0:00:08.8]} 43... Ne5 {[%clk 0:00:01.4]} 44. Bxh5 {[%clk 0:00:06.8]}
44... Kf8 {[%clk 0:00:01.3]} 45. Bf3 {[%clk 0:00:06.1]} 45... Nxf3 {[%clk
0:00:01.3]} 46. Qh6+ {[%clk 0:00:06.9]} 46... Ke7 {[%clk 0:00:01.5]} 47. Kxf3
{[%clk 0:00:04.5]} 47... Qd5+ {[%clk 0:00:01.9]} 48. Kg4 {[%clk 0:00:04.9]}
48... Qf5+ {[%clk 0:00:02]} 49. Kh4 {[%clk 0:00:05.4]} 49... Qf6+ {[%clk
0:00:02.5]} 50. Kh3 {[%clk 0:00:05.4]} 50... Rh8 {[%clk 0:00:02.5]} 51. Re1+
{[%clk 0:00:06.2]} 51... Kd7 {[%clk 0:00:03.1]} 52. Rd1+ {[%clk 0:00:06.5]}
52... Kc6 {[%clk 0:00:03.5]} 53. Rc1+ {[%clk 0:00:07.2]} 53... Kb5 {[%clk
0:00:04]} 54. Rb1+ {[%clk 0:00:07.7]} 54... Ka4 {[%clk 0:00:04.2]} 55. Qxh8
{[%clk 0:00:05.5]} 55... Qxh8+ {[%clk 0:00:03.9]} 56. Kg2 {[%clk 0:00:06.4]}
56... Qd4 {[%clk 0:00:04.4]} 57. Rb7 {[%clk 0:00:06.5]} 57... Qe4+ {[%clk
0:00:04.8]} 58. f3 {[%clk 0:00:06.6]} 58... Qxb7 {[%clk 0:00:05.7]} 59. Kh2
{[%clk 0:00:05.9]} 59... Qb2+ {[%clk 0:00:06.4]} 60. Kh1 {[%clk 0:00:06.1]}
60... Kb3 {[%clk 0:00:07.1]} 61. f4 {[%clk 0:00:06.6]} 61... a5 {[%clk 0:00:08]}
62. f5 {[%clk 0:00:07.3]} 62... a4 {[%clk 0:00:08.9]} 0-1